[Event "GM ZIA Smirity-B 2025"]
[Site "Dhaka"]
[Date "2025.02.17"]
[Round "2.1"]
[White "Md Masud, Rana"]
[Black "Neloy, Debnath"]
[Result "0-1"]
[Annotator "NA"]
[ECO "B08"]
[WhiteElo "1822"]
[BlackElo "1982"]
[PlyCount "67"]
[EventDate "2025.02.17"]
[EventType "swiss"]
[EventCountry "BAN"]
[SourceTitle "playchess.com"]
[Source "ChessBase"]
[SourceQuality "1"]
[TimeControl "5400+30"]

1. e4 d6 2. d4 Nf6 3. Bd3 g6 4. Nf3 Bg7 5. O-O O-O 6. Nc3 Bg4 7. h3 Bxf3 8. Qxf3 Nc6 9. Be3 e5 10. dxe5 Nxe5 11. Qe2 {[%emt 1:36:00]} Nfd7 {[%emt 1:36:00]} 12. f4 {[%emt 0:00:30]} Nxd3 {[%emt 0:00:30]} 13. cxd3 {[%emt 0:00:30]} f5 {[%emt 0:00:30]} 14. Rac1 {[%emt 0:00:30]} c6 {[%emt 0:00:30]} 15. Qf2 {[%emt 0:00:30]} Qa5 {[%emt 0:00:30]} 16. Bd4 {[%emt 0:00:30]} Bxd4 {[%emt 0:00:30]} 17. Qxd4 {[%emt 0:00:30]} Qc5 {[%emt 0:00:30]} 18. Ne2 {[%emt 0:00:30]} Qxd4+ {[%emt 0:00:30]} 19. Nxd4 {[%emt 0:00:30]} fxe4 {[%emt 0:00:30]} 20. dxe4 Rae8 {[%emt 0:00:30]} 21. Rce1 {[%emt 0:01:00]} Nc5 {[%emt 0:00:30]} 22. e5 {[%emt 0:00:30]} Nd3 {[%emt 0:00:30]} 23. Rd1 {[%emt 0:00:30]} Nxb2 {[%emt 0:00:30]} 24. Rb1 {[%emt 0:00:30]} dxe5 {[%emt 0:00:30]} 25. fxe5 {[%emt 0:00:30]} Rxf1+ {[%emt 0:00:30]} 26. Kxf1 {[%emt 0:00:30]} Nd3 {[%emt 0:00:30]} 27. Rxb7 {[%emt 0:00:30]} Rxe5 {[%emt 0:00:30]} 28. Nf3 {[%emt 0:00:30]} Ra5 {[%emt 0:00:30]} 29. Nd4 {[%emt 0:00:30]} Re5 {[%emt 0:00:30]} 30. Nf3 {[%emt 0:00:30]} Ra5 {[%emt 0:00:30]} 31. Nd4 {[%emt 0:00:30]} c5 {[%emt 0:00:30]} 32. Ne6 {[%emt 0:00:30]} Ra6 {[%emt 0:00:30]} 33. Ng5 {[%emt 0:00:30]} h6 34. Ne4 0-1

[Event "GM ZIA Smirity-B 2025"]
[Site "Dhaka"]
[Date "2025.02.17"]
[Round "2.2"]
[White "Sarwar, Hossain Ullash"]
[Black "Celik, Hasan Huseyin"]
[Result "1-0"]
[Annotator "ChessBase"]
[ECO "A43"]
[WhiteElo "1963"]
[BlackElo "2441"]
[PlyCount "83"]
[EventDate "2025.02.17"]
[EventType "swiss"]
[EventCountry "BAN"]
[SourceTitle "playchess.com"]
[Source "ChessBase"]
[SourceQuality "1"]
[TimeControl "5400+30"]

1. d4 {[%emt 0:00:03]} Nf6 {[%emt 0:21:52]} 2. Nf3 {[%emt 0:00:24]} c5 {[%emt 0:01:53]} 3. d5 {[%emt 0:00:15]} Qb6 {[%emt 0:01:28]} 4. c4 {[%emt 0:00:15]} e6 {[%emt 0:00:18]} 5. Nc3 {[%emt 0:00:18]} d6 {[%emt 0:01:04]} 6. e4 {[%emt 0:00:13]} Be7 {[%emt 0:01:14]} 7. Bd3 {[%emt 0:00:37]} Nbd7 {[%emt 0:02:38]} 8. h3 {[%emt 0:00:22]} a6 {[%emt 0:02:36]} 9. O-O {[%emt 0:00:17]} e5 {[%emt 0:00:38]} 10. a4 {[%emt 0:01:56]} Nf8 {[%emt 0:01:25]} 11. a5 {[%emt 0:00:34]} Qc7 {[%emt 0:00:36]} 12. b4 {[%emt 0:05:11]} Ng6 {[%emt 0:01:20]} 13. Na4 {[%emt 0:00:45]} O-O {[%emt 0:00:38]} 14. Nb6 {[%emt 0:02:28]} Rb8 {[%emt 0:00:15]} 15. bxc5 {[%emt 0:00:12]} dxc5 {[%emt 0:01:24]} 16. Be3 {[%emt 0:00:42]} Nd7 {[%emt 0:01:51]} 17. Nxc8 {[%emt 0:02:25]} Rfxc8 {[%emt 0:01:39]} 18. Qd2 {[%emt 0:01:17]} h6 {[%emt 0:02:22]} 19. Rfb1 {[%emt 0:00:57]} Qd6 {[%emt 0:05:39]} 20. Rb3 {[%emt 0:00:44]} b6 {[%emt 0:01:35]} 21. axb6 {[%emt 0:00:40]} Rxb6 {[%emt 0:00:26]} 22. Rba3 {[%emt 0:00:26]} Ra8 {[%emt 0:00:42]} 23. Ra5 {[%emt 0:00:18]} Bd8 {[%emt 0:00:29]} 24. Qa2 {[%emt 0:00:54]} Nf4 {[%emt 0:09:36]} 25. Bf1 {[%emt 0:02:05]} Be7 {[%emt 0:02:38]} 26. Qa3 {[%emt 0:05:16]} Qc7 {[%emt 0:37:14]} 27. Bxf4 {[%emt 0:00:59]} exf4 {[%emt 0:00:28]} 28. Re1 {[%emt 0:01:09]} Qb7 {[%emt 0:07:27]} 29. e5 {[%emt 0:00:43]} Rb3 {[%emt 0:00:16]} 30. Qc1 {[%emt 0:00:53]} Qb4 {[%emt 0:00:40]} 31. Ra1 {[%emt 0:01:06]} a5 {[%emt 0:04:14]} 32. Qxf4 {[%emt 0:00:15]} Nb6 {[%emt 0:01:06]} 33. d6 {[%emt 0:00:43]} Bd8 {[%emt 0:00:27]} 34. e6 {[%emt 0:00:34]} fxe6 {[%emt 0:00:13]} 35. Rxe6 {[%emt 0:00:19]} Bf6 {[%emt 0:04:03]} 36. Rae1 {[%emt 0:01:18]} Rf8 {[%emt 0:04:28]} 37. Re8 {[%emt 0:00:19]} Rb1 {[%emt 0:01:57]} 38. Rxf8+ {[%emt 0:01:16]} Kxf8 {[%emt 0:00:05]} 39. Rxb1 {[%emt 0:00:48]} Qxb1 {[%emt 0:00:08]} 40. Ne5 {[%emt 0:00:16]} Qd1 {[%emt 0:00:55]} 41. Ng6+ {[%emt 0:12:42]} Kf7 {[%emt 0:01:47]} 42. Ne5+ {[%emt 0:01:21]} 1-0

[Event "GM ZIA Smirity-B 2025"]
[Site "Dhaka"]
[Date "2025.02.18"]
[Round "3.1"]
[White "Neloy, Debnath"]
[Black "Jannatul, Ferdous"]
[Result "1-0"]
[Annotator "NA"]
[ECO "A07"]
[WhiteElo "1982"]
[BlackElo "1878"]
[PlyCount "105"]
[EventDate "2025.02.17"]
[EventType "swiss"]
[EventCountry "BAN"]
[SourceTitle "playchess.com"]
[Source "ChessBase"]
[SourceQuality "1"]
[TimeControl "5400+30"]

1. g3 {[%emt 0:11:36]} d5 {[%emt 0:00:41]} 2. Bg2 {[%emt 0:00:26]} Nf6 {[%emt 0:00:03]} 3. Nf3 {[%emt 0:00:10]} e6 {[%emt 0:00:19]} 4. O-O {[%emt 0:00:06]} Bd6 {[%emt 0:03:20]} 5. d3 {[%emt 0:01:31]} O-O {[%emt 0:00:20]} 6. Nc3 {[%emt 0:01:16]} a6 {[%emt 0:02:43]} 7. Bg5 {[%emt 0:00:43]} h6 {[%emt 0:01:33]} 8. Bxf6 {[%emt 0:03:15]} Qxf6 {[%emt 0:00:16]} 9. Re1 {[%emt 0:00:34]} Bb4 {[%emt 0:01:15]} 10. Qd2 {[%emt 0:11:51]} Nc6 {[%emt 0:24:24]} 11. a3 {[%emt 0:00:35]} Bxc3 {[%emt 0:06:59]} 12. bxc3 {[%emt 0:00:12]} b6 {[%emt 0:01:27]} 13. e4 {[%emt 0:06:38]} dxe4 {[%emt 0:03:01]} 14. Rxe4 {[%emt 0:00:13]} Bb7 {[%emt 0:00:24]} 15. Rf4 {[%emt 0:01:33]} Qe7 {[%emt 0:02:24]} 16. Nd4 {[%emt 0:19:02]} Na5 {[%emt 0:06:10]} 17. Bxb7 {[%emt 0:01:12]} Nxb7 {[%emt 0:00:02]} 18. Rg4 {[%emt 0:03:10]} Kh7 {[%emt 0:02:50]} 19. Re4 {[%emt 0:03:40]} Qd6 {[%emt 0:02:27]} 20. Nf3 {[%emt 0:05:54]} Na5 {[%emt 0:10:22]} 21. Ne5 {[%emt 0:00:48]} Nc6 {[%emt 0:00:52]} 22. Nc4 {[%emt 0:00:25]} Qc5 {[%emt 0:02:30]} 23. Re2 {[%emt 0:01:44]} Rad8 {[%emt 0:02:37]} 24. Qe3 {[%emt 0:05:09]} Qxe3 {[%emt 0:03:28]} 25. fxe3 {[%emt 0:02:03]} f6 {[%emt 0:04:36]} 26. Kf2 {[%emt 0:00:29]} Ne7 {[%emt 0:02:11]} 27. Ke1 {[%emt 0:01:27]} Nf5 {[%emt 0:03:28]} 28. Rb1 {[%emt 0:01:19]} Rb8 {[%emt 0:01:59]} 29. e4 {[%emt 0:01:23]} Nd6 {[%emt 0:01:01]} 30. Nxd6 {[%emt 0:01:01]} cxd6 {[%emt 0:00:02]} 31. c4 {[%emt 0:00:37]} b5 {[%emt 0:00:37]} 32. cxb5 {[%emt 0:00:19]} Rxb5 {[%emt 0:00:16]} 33. Rxb5 {[%emt 0:00:30]} axb5 {[%emt 0:00:02]} 34. c3 {[%emt 0:00:18]} Rc8 {[%emt 0:08:41]} 35. Rc2 {[%emt 0:00:11]} d5 {[%emt 0:00:38]} 36. exd5 {[%emt 0:00:10]} exd5 {[%emt 0:00:05]} 37. Kd2 {[%emt 0:00:07]} Ra8 {[%emt 0:03:01]} 38. Ra2 {[%emt 0:01:15]} Kg6 {[%emt 0:01:43]} 39. Ke3 {[%emt 0:00:14]} Ra4 {[%emt 0:00:24]} 40. Rb2 {[%emt 0:03:57]} Rxa3 {[%emt 0:00:22]} 41. Kd4 {[%emt 0:00:07]} Ra5 {[%emt 0:00:49]} 42. Rb4 {[%emt 0:01:52]} Kf5 {[%emt 0:00:34]} 43. Kxd5 {[%emt 0:00:13]} Ra3 {[%emt 0:00:32]} 44. Rxb5 {[%emt 0:00:57]} Kg4 {[%emt 0:00:20]} 45. Kd4 {[%emt 0:00:37]} Ra2 {[%emt 0:00:27]} 46. c4 {[%emt 0:01:38]} Rxh2 {[%emt 0:00:05]} 47. c5 {[%emt 0:00:04]} Re2 {[%emt 0:01:03]} 48. c6 {[%emt 0:00:16]} Re8 {[%emt 0:00:21]} 49. Kc5 {[%emt 0:01:00]} Rd8 {[%emt 0:00:21]} 50. d4 {[%emt 0:00:24]} Kxg3 {[%emt 0:00:20]} 51. d5 {[%emt 0:00:12]} Kf4 {[%emt 0:01:35]} 52. c7 {[%emt 0:00:11]} Rc8 {[%emt 0:00:00]} 53. d6 {[%emt 0:12:26]} 1-0

[Event "GM ZIA Smirity-B 2025"]
[Site "Dhaka"]
[Date "2025.02.18"]
[Round "3.2"]
[White "Islam, Sheik   Khairul"]
[Black "Sarwar, Hossain Ullash"]
[Result "0-1"]
[Annotator "NA"]
[ECO "B10"]
[WhiteElo "1841"]
[BlackElo "1963"]
[PlyCount "69"]
[EventDate "2025.02.17"]
[EventType "swiss"]
[EventCountry "BAN"]
[SourceTitle "playchess.com"]
[Source "ChessBase"]
[SourceQuality "1"]
[TimeControl "5400+30"]

1. e4 {[%emt 0:12:47]} c6 {[%emt 0:03:39]} 2. f4 {[%emt 0:00:54]} d5 {[%emt 0:00:09]} 3. e5 {[%emt 0:00:03]} e6 {[%emt 0:00:38]} 4. Nf3 {[%emt 0:00:04]} g6 {[%emt 0:00:25]} 5. c3 {[%emt 0:00:03]} c5 {[%emt 0:00:23]} 6. d4 {[%emt 0:00:50]} Nc6 {[%emt 0:00:42]} 7. Be3 {[%emt 0:00:09]} Qb6 {[%emt 0:00:20]} 8. Qb3 {[%emt 0:00:24]} c4 {[%emt 0:00:45]} 9. Qc2 {[%emt 0:00:15]} Nge7 {[%emt 0:01:06]} 10. Nbd2 {[%emt 0:00:43]} Bd7 {[%emt 0:00:29]} 11. Be2 {[%emt 0:00:05]} Nf5 {[%emt 0:00:13]} 12. Bf2 {[%emt 0:00:03]} Qc7 {[%emt 0:01:50]} 13. b3 {[%emt 0:01:07]} b5 {[%emt 0:00:14]} 14. a4 {[%emt 0:00:03]} cxb3 {[%emt 0:01:39]} 15. Qxb3 {[%emt 0:00:03]} Na5 {[%emt 0:00:18]} 16. Qc2 {[%emt 0:00:14]} bxa4 {[%emt 0:00:10]} 17. Rxa4 {[%emt 0:01:21]} Bxa4 {[%emt 0:00:39]} 18. Qxa4+ {[%emt 0:00:02]} Nc6 {[%emt 0:00:13]} 19. g4 {[%emt 0:00:36]} Nfe7 {[%emt 0:00:10]} 20. O-O {[%emt 0:00:33]} Bg7 {[%emt 0:00:31]} 21. c4 {[%emt 0:00:24]} O-O {[%emt 0:00:24]} 22. cxd5 {[%emt 0:00:46]} exd5 {[%emt 0:01:27]} 23. Rc1 {[%emt 0:00:10]} Qb6 {[%emt 0:02:31]} 24. Nb3 {[%emt 0:01:39]} Qb4 {[%emt 0:01:27]} 25. Qa2 {[%emt 0:00:32]} Rfb8 {[%emt 0:00:37]} 26. Bd1 {[%emt 0:03:53]} a5 {[%emt 0:00:46]} 27. Be1 {[%emt 0:00:18]} Qb6 {[%emt 0:00:03]} 28. Bc3 {[%emt 0:01:47]} Nb4 {[%emt 0:00:37]} 29. Qd2 {[%emt 0:00:30]} Nec6 {[%emt 0:00:51]} 30. Nc5 {[%emt 0:00:06]} Qa7 {[%emt 0:01:40]} 31. Ba4 {[%emt 0:00:30]} Bf8 {[%emt 0:00:39]} 32. Nb3 {[%emt 0:01:49]} Qa6 {[%emt 0:01:11]} 33. Ba1 {[%emt 0:04:35]} Rc8 {[%emt 0:03:05]} 34. f5 {[%emt 0:00:28]} Qa7 {[%emt 0:08:14]} 35. Qe3 {[%emt 0:14:56]} 0-1

[Event "GM ZIA Smirity-B 2025"]
[Site "Dhaka"]
[Date "2025.02.18"]
[Round "3.3"]
[White "Zoar Haque, Prodhan"]
[Black "Hossain, Kazi Iquball"]
[Result "0-1"]
[Annotator "NA"]
[ECO "A45"]
[WhiteElo "1947"]
[BlackElo "1821"]
[PlyCount "85"]
[EventDate "2025.02.17"]
[EventType "swiss"]
[EventCountry "BAN"]
[SourceTitle "playchess.com"]
[Source "ChessBase"]
[SourceQuality "1"]
[TimeControl "5400+30"]

1. d4 {[%emt 0:00:08]} Nf6 {[%emt 0:02:12]} 2. Nc3 {[%emt 0:00:35]} b6 {[%emt 0:01:03]} 3. e4 {[%emt 0:00:50]} Bb7 {[%emt 0:00:42]} 4. Bd3 {[%emt 0:00:17]} d6 {[%emt 0:01:38]} 5. f4 {[%emt 0:00:44]} e6 {[%emt 0:01:44]} 6. Nf3 {[%emt 0:00:29]} Be7 {[%emt 0:00:48]} 7. O-O {[%emt 0:04:26]} Nbd7 {[%emt 0:00:56]} 8. Bd2 {[%emt 0:03:35]} c5 {[%emt 0:03:40]} 9. e5 {[%emt 0:00:25]} Nd5 {[%emt 1:22:17]} 10. Nxd5 {[%emt 0:00:28]} Bxd5 {[%emt 0:00:00]} 11. c3 {[%emt 0:00:46]} c4 {[%emt 0:00:00]} 12. Bc2 {[%emt 0:00:26]} g6 {[%emt 0:00:00]} 13. Qe2 {[%emt 0:00:55]} Qc7 {[%emt 0:00:00]} 14. h3 {[%emt 0:00:20]} f5 {[%emt 0:00:00]} 15. exf6 {[%emt 0:02:23]} Bxf6 {[%emt 0:00:00]} 16. f5 {[%emt 0:04:45]} gxf5 {[%emt 0:00:00]} 17. Ng5 {[%emt 0:00:29]} O-O-O {[%emt 0:04:00]} 18. Nxe6 {[%emt 1:17:29]} Rde8 {[%emt 0:00:00]} 19. Nxc7 {[%emt 0:00:00]} Rxe2 {[%emt 0:00:00]} 20. Nxd5 {[%emt 0:00:00]} Rxd2 {[%emt 0:00:00]} 21. Bxf5 {[%emt 0:00:00]} Bh4 {[%emt 0:00:00]} 22. b3 {[%emt 0:00:00]} Rg8 {[%emt 0:00:00]} 23. g4 {[%emt 0:00:00]} Re8 {[%emt 0:00:00]} 24. Nf4 {[%emt 0:00:00]} Re3 {[%emt 0:00:00]} 25. Ng2 {[%emt 0:00:00]} Rg3 {[%emt 0:00:00]} 26. Rf2 {[%emt 0:00:00]} Bg5 {[%emt 0:00:00]} 27. Re1 {[%emt 0:00:00]} Rxh3 {[%emt 0:00:00]} 28. Rxd2 {[%emt 0:00:00]} Bxd2 {[%emt 0:00:00]} 29. Re7 {[%emt 0:00:00]} Bxc3 {[%emt 0:00:00]} 30. bxc4 {[%emt 0:00:00]} Bxd4+ {[%emt 0:00:00]} 31. Kf1 {[%emt 0:00:00]} Rf3+ {[%emt 0:00:00]} 32. Ke2 {[%emt 0:00:00]} Rxf5 {[%emt 0:00:00]} 33. gxf5 {[%emt 0:00:00]} h5 {[%emt 0:00:00]} 34. Nf4 {[%emt 0:00:00]} h4 {[%emt 0:00:00]} 35. Rh7 {[%emt 0:00:00]} Bf6 {[%emt 0:00:00]} 36. Nd5 {[%emt 0:00:00]} Bg5 {[%emt 0:00:00]} 37. Rh8+ {[%emt 0:00:00]} Kb7 {[%emt 0:00:00]} 38. Rg8 {[%emt 0:00:00]} Bc1 {[%emt 0:00:00]} 39. f6 {[%emt 0:00:00]} Bb2 {[%emt 0:00:00]} 40. f7 {[%emt 0:00:00]} h3 {[%emt 0:00:00]} 41. Kf2 {[%emt 0:00:00]} h2 {[%emt 0:00:00]} 42. Kg2 {[%emt 0:00:00]} a6 {[%emt 0:00:00]} 43. Rd8 {[%emt 0:00:00]} 0-1

[Event "GM ZIA Smirity-B 2025"]
[Site "Dhaka"]
[Date "2025.02.18"]
[Round "4.1"]
[White "Hasan, Sk. Rashedul"]
[Black "Neloy, Debnath"]
[Result "1-0"]
[Annotator "ChessBase"]
[ECO "B07"]
[WhiteElo "1918"]
[BlackElo "1982"]
[PlyCount "193"]
[EventDate "2025.02.17"]
[EventType "swiss"]
[EventCountry "BAN"]
[SourceTitle "playchess.com"]
[Source "ChessBase"]
[SourceQuality "1"]
[TimeControl "5400+30"]

1. e4 {[%emt 0:21:48]} d6 {[%emt 0:00:20]} 2. d4 {[%emt 0:01:22]} Nf6 {[%emt 0:00:10]} 3. Nc3 {[%emt 0:00:12]} g6 {[%emt 0:00:08]} 4. Bf4 {[%emt 0:00:25]} c6 {[%emt 0:00:51]} 5. Qd2 {[%emt 0:00:39]} Nbd7 {[%emt 0:00:09]} 6. f3 {[%emt 0:06:19]} Qa5 {[%emt 0:02:23]} 7. Bd3 {[%emt 0:03:18]} Bg7 {[%emt 0:06:45]} 8. Bh6 {[%emt 0:00:47]} Bxh6 {[%emt 0:02:06]} 9. Qxh6 {[%emt 0:00:07]} b5 {[%emt 0:00:20]} 10. Qd2 {[%emt 0:04:42]} Qb4 {[%emt 0:02:17]} 11. d5 {[%emt 0:00:19]} cxd5 {[%emt 0:00:18]} 12. exd5 {[%emt 0:01:58]} a6 {[%emt 0:00:40]} 13. O-O-O {[%emt 0:01:57]} Bb7 {[%emt 0:00:53]} 14. Be4 {[%emt 0:01:23]} Ne5 {[%emt 0:06:26]} 15. Nce2 {[%emt 0:05:03]} Qxd2+ {[%emt 0:03:22]} 16. Rxd2 {[%emt 0:00:04]} Nc4 {[%emt 1:11:22]} 17. Rd3 {[%emt 0:00:30]} Nb6 {[%emt 0:00:00]} 18. Nh3 {[%emt 0:04:16]} Bxd5 {[%emt 0:00:00]} 19. Bxd5 {[%emt 0:00:03]} Nbxd5 {[%emt 0:00:00]} 20. Re1 {[%emt 0:00:07]} Rc8 {[%emt 0:00:00]} 21. Nef4 {[%emt 0:01:16]} Nxf4 {[%emt 0:00:00]} 22. Nxf4 {[%emt 0:00:03]} Kd7 {[%emt 0:00:00]} 23. h4 {[%emt 0:00:46]} Rc4 {[%emt 0:00:00]} 24. g3 {[%emt 0:00:14]} Rhc8 {[%emt 0:00:00]} 25. Re2 {[%emt 0:00:03]} h6 {[%emt 0:00:00]} 26. Ng2 {[%emt 0:01:22]} e6 {[%emt 0:00:00]} 27. Ne3 {[%emt 0:00:49]} R4c5 {[%emt 0:00:00]} 28. Red2 {[%emt 0:00:11]} d5 {[%emt 0:00:00]} 29. g4 {[%emt 0:00:15]} Ke7 {[%emt 0:00:00]} 30. f4 {[%emt 0:00:25]} Ne4 {[%emt 0:07:00]} 31. Re2 {[%emt 0:00:23]} Kf8 {[%emt 0:00:00]} 32. f5 {[%emt 0:00:11]} Kg7 {[%emt 0:00:00]} 33. a3 {[%emt 0:02:42]} R5c6 {[%emt 0:00:00]} 34. c3 {[%emt 0:00:37]} Rh8 {[%emt 0:00:00]} 35. Nc2 {[%emt 0:00:19]} h5 {[%emt 0:00:00]} 36. fxe6 {[%emt 0:00:43]} fxe6 {[%emt 0:00:00]} 37. Nd4 {[%emt 0:01:42]} Rb6 {[%emt 0:00:00]} 38. g5 {[%emt 0:00:25]} Rf8 {[%emt 0:00:00]} 39. Nf3 {[%emt 0:01:27]} Rf4 {[%emt 0:00:00]} 40. Rh2 {[%emt 0:00:10]} Rb8 {[%emt 0:00:00]} 41. Nd4 {[%emt 0:00:23]} Kf7 {[%emt 0:00:00]} 42. Rd1 {[%emt 0:01:09]} Rc8 {[%emt 0:00:00]} 43. Ne2 {[%emt 0:00:14]} Rg4 {[%emt 0:00:00]} 44. Rf1+ {[%emt 0:03:53]} Ke7 {[%emt 0:00:00]} 45. Nf4 {[%emt 0:00:17]} Rg8 {[%emt 0:00:00]} 46. Nd3 {[%emt 0:00:32]} Rf8 {[%emt 0:00:00]} 47. Rxf8 {[%emt 0:00:10]} Kxf8 {[%emt 0:00:00]} 48. Ne5 {[%emt 0:00:39]} Rg1+ {[%emt 0:00:00]} 49. Kc2 {[%emt 0:00:02]} Kg7 {[%emt 0:00:00]} 50. Kb3 {[%emt 0:01:12]} a5 {[%emt 0:00:00]} 51. Nf3 {[%emt 0:00:08]} Nc5+ {[%emt 0:00:00]} 52. Kc2 {[%emt 0:00:23]} Rf1 {[%emt 0:00:00]} 53. Nd4 {[%emt 0:01:17]} e5 {[%emt 0:00:00]} 54. Nxb5 {[%emt 0:00:05]} a4 {[%emt 0:00:00]} 55. Rd2 {[%emt 0:03:03]} e4 {[%emt 0:04:19]} 56. Rxd5 {[%emt 0:03:25]} Nb3 {[%emt 0:00:35]} 57. Rd1 {[%emt 0:00:11]} Rf2+ {[%emt 0:00:10]} 58. Kb1 {[%emt 0:00:07]} e3 {[%emt 0:01:39]} 59. Re1 {[%emt 0:01:34]} Nd2+ {[%emt 0:02:09]} 60. Kc1 {[%emt 0:01:39]} Nb3+ {[%emt 0:00:50]} 61. Kb1 {[%emt 0:00:09]} Nd2+ {[%emt 0:00:13]} 62. Kc1 {[%emt 0:00:50]} Nc4 {[%emt 0:00:07]} 63. Nd4 {[%emt 0:00:32]} Rh2 {[%emt 0:01:20]} 64. Nc2 {[%emt 0:00:05]} Rh3 {[%emt 0:02:08]} 65. Re2 {[%emt 0:05:01]} Kf7 {[%emt 0:00:30]} 66. Nd4 {[%emt 0:00:55]} Rxh4 {[%emt 0:00:27]} 67. Kc2 {[%emt 0:00:01]} Rg4 {[%emt 0:02:07]} 68. Kd3 {[%emt 0:00:05]} Ne5+ {[%emt 0:00:30]} 69. Kxe3 {[%emt 0:00:12]} Rxg5 {[%emt 0:00:15]} 70. Ke4 {[%emt 0:00:09]} Ng4 {[%emt 0:00:49]} 71. Nf3 {[%emt 0:00:30]} Nf6+ {[%emt 0:00:36]} 72. Kd4 {[%emt 0:00:34]} Rg4+ {[%emt 0:00:16]} 73. Kc5 {[%emt 0:00:23]} Ne4+ {[%emt 0:01:03]} 74. Rxe4 {[%emt 0:00:05]} Rxe4 {[%emt 0:00:24]} 75. Ng5+ {[%emt 0:00:01]} Kf6 {[%emt 0:00:13]} 76. Nxe4+ {[%emt 0:00:05]} Ke5 {[%emt 0:00:19]} 77. Nf2 {[%emt 0:00:36]} g5 {[%emt 0:00:19]} 78. Kc4 {[%emt 0:00:19]} Kf4 {[%emt 0:02:42]} 79. Kd3 {[%emt 0:29:43]} Kf3 {[%emt 0:00:00]} 80. Ne4 {[%emt 0:00:00]} g4 {[%emt 0:00:00]} 81. c4 {[%emt 0:00:00]} h4 {[%emt 0:00:00]} 82. c5 {[%emt 0:00:00]} h3 {[%emt 0:00:00]} 83. Nd2+ {[%emt 0:00:00]} Kg2 {[%emt 0:01:28]} 84. c6 {[%emt 0:00:00]} h2 {[%emt 0:00:05]} 85. c7 {[%emt 0:00:00]} h1=Q {[%emt 0:00:07]} 86. c8=Q {[%emt 0:00:00]} Qh7+ {[%emt 0:00:40]} 87. Ne4 {[%emt 0:00:00]} Qh3+ {[%emt 0:00:59]} 88. Kd4 {[%emt 0:00:00]} Qf3 {[%emt 0:01:01]} 89. Qc2+ {[%emt 0:00:00]} Kg1 {[%emt 0:00:15]} 90. Qc1+ {[%emt 0:00:00]} Kg2 {[%emt 0:00:33]} 91. Qd2+ {[%emt 0:00:00]} Kh1 {[%emt 0:00:38]} 92. Qd3 {[%emt 0:00:00]} Kg2 {[%emt 0:00:38]} 93. Qxf3+ {[%emt 0:00:00]} Kxf3 {[%emt 0:00:09]} 94. Kd3 {[%emt 0:00:00]} Kf4 {[%emt 0:00:11]} 95. Nc3 {[%emt 0:00:00]} Kf3 {[%emt 0:01:46]} 96. Nxa4 {[%emt 0:00:00]} g3 {[%emt 0:00:00]} 97. Nc3 {[%emt 0:00:00]} 1-0

[Event "GM ZIA Smirity-B 2025"]
[Site "Dhaka"]
[Date "2025.02.18"]
[Round "4.2"]
[White "Md Anichuzzaman, Jewel"]
[Black "Zoar Haque, Prodhan"]
[Result "0-1"]
[Annotator "ChessBase"]
[ECO "A05"]
[WhiteElo "1896"]
[BlackElo "1947"]
[PlyCount "90"]
[EventDate "2025.02.17"]
[EventType "swiss"]
[EventCountry "BAN"]
[SourceTitle "playchess.com"]
[Source "ChessBase"]
[SourceQuality "1"]
[TimeControl "5400+30"]

1. Nf3 {[%emt 0:02:47]} Nf6 {[%emt 0:00:03]} 2. b3 {[%emt 0:00:19]} d6 {[%emt 0:03:49]} 3. Bb2 {[%emt 0:00:08]} e5 {[%emt 0:00:09]} 4. g3 {[%emt 0:02:50]} c6 {[%emt 0:02:14]} 5. Bg2 {[%emt 0:01:09]} Be7 {[%emt 0:00:16]} 6. O-O {[%emt 0:00:50]} Bf5 {[%emt 0:01:21]} 7. d3 {[%emt 0:01:36]} Qc8 {[%emt 0:00:37]} 8. Re1 {[%emt 0:00:33]} Bh3 {[%emt 0:00:13]} 9. Bh1 {[%emt 0:00:16]} h6 {[%emt 0:00:53]} 10. c4 {[%emt 0:00:41]} Nbd7 {[%emt 0:00:57]} 11. Nbd2 {[%emt 0:02:27]} O-O {[%emt 0:02:08]} 12. b4 {[%emt 0:01:37]} Qc7 {[%emt 0:02:06]} 13. Rc1 {[%emt 0:09:07]} Rad8 {[%emt 0:01:54]} 14. a3 {[%emt 0:03:14]} Ng4 {[%emt 0:01:06]} 15. d4 {[%emt 0:04:15]} f5 {[%emt 0:00:17]} 16. e4 {[%emt 0:07:04]} f4 {[%emt 0:01:15]} 17. Bg2 {[%emt 0:04:40]} Bxg2 {[%emt 0:00:24]} 18. Kxg2 {[%emt 0:00:01]} fxg3 {[%emt 0:00:37]} 19. fxg3 {[%emt 0:03:05]} exd4 {[%emt 0:02:24]} 20. Bxd4 {[%emt 0:00:45]} Bf6 {[%emt 0:01:11]} 21. Bg1 {[%emt 0:01:14]} c5 {[%emt 0:01:33]} 22. Nf1 {[%emt 0:06:28]} Bb2 {[%emt 0:02:02]} 23. Rc2 {[%emt 0:05:14]} Bxa3 {[%emt 0:00:29]} 24. b5 {[%emt 0:00:23]} Bb4 {[%emt 0:00:11]} 25. Qd5+ {[%emt 0:02:50]} Kh7 {[%emt 0:01:43]} 26. Ra1 {[%emt 0:00:53]} b6 {[%emt 0:03:52]} 27. Rca2 {[%emt 0:06:27]} Ba5 {[%emt 0:01:07]} 28. Nh4 {[%emt 0:05:52]} Nge5 {[%emt 0:02:27]} 29. Ne3 {[%emt 0:02:27]} Nf6 {[%emt 0:00:56]} 30. Qe6 {[%emt 0:01:12]} Nxe4 {[%emt 0:01:04]} 31. Rf1 {[%emt 0:03:18]} Rde8 {[%emt 0:00:28]} 32. Qd5 {[%emt 0:01:01]} Nc3 {[%emt 0:00:09]} 33. Qd2 {[%emt 0:03:52]} Rxf1 {[%emt 0:01:05]} 34. Kxf1 {[%emt 0:01:01]} Qf7+ {[%emt 0:00:27]} 35. Kg2 {[%emt 0:00:12]} Nxa2 {[%emt 0:00:20]} 36. Qxa2 {[%emt 0:00:27]} Kg8 {[%emt 0:02:17]} 37. Qc2 {[%emt 0:00:53]} Rf8 {[%emt 0:01:25]} 38. Qe4 {[%emt 0:01:59]} Bc3 {[%emt 0:00:31]} 39. Nhf5 {[%emt 0:00:36]} Bd4 {[%emt 0:01:54]} 40. Nd5 {[%emt 0:02:16]} Bxg1 {[%emt 0:01:29]} 41. Kxg1 {[%emt 0:00:05]} Kh8 {[%emt 0:00:36]} 42. Nde3 {[%emt 0:01:18]} g6 {[%emt 0:01:37]} 43. Nh4 {[%emt 0:00:14]} Qf2+ {[%emt 0:01:59]} 44. Kh1 {[%emt 0:00:08]} g5 {[%emt 0:01:33]} 45. Nhg2 {[%emt 0:01:58]} Qf1+ {[%emt 0:00:27]} 0-1